{"text_format":"1","workbook":"xlsx","n_sheets":9,"sheets":["Find and Reolace Formatting","Partial String","Changing Existing format","Sheet1 (4)","Replacing number","Sheet1 (6)","Reolace line breaks","Reolace line breaks (2)","Reolace line breaks (3)"],"not_rendered":{"charts":0,"images":1,"macros":1,"external_links":0,"defined_names":0,"comments":0,"pivot_tables":0},"unopened":[],"bounds":{"document_bytes":16777216,"sheet_cells":100000,"rows_first":2000,"rows_last":500,"rows_between":2000,"halvings":0,"cell_chars":16384,"cell_head_chars":4096},"cells_cut":0,"cells_raw":0,"read":"whole","date_system":"1900"}

{"sheet":"Find and Reolace Formatting","index":0,"n_rows":11,"n_cols":6,"rows_kept":11,"cut":false,"hidden":false,"merged":[[1,1,1,5]]}
[]
[null,"Find and Replace Formatting in Excel"]
[]
[null,"Car Name","Region","Quantity","Unit Price","Sales"]
[null,"BMW","North Carolina",23,145000,{"$f":"E5*D5","v":3335000}]
[null,"Mercedes Benz","South Carolina",24,145000,{"$f":"E6*D6","v":3480000}]
[null,"BMW","New York",45,145000,6525000]
[null,"Toyota","North Alaska",23,145000,3335000]
[null,"Mercedes Benz","Los Angeles",30,145000,4350000]
[null,"BMW","North Carolina",23,145000,3335000]
[null,"Toyota","Colorado",24,145000,3480000]

{"sheet":"Partial String","index":1,"n_rows":11,"n_cols":6,"rows_kept":11,"cut":false,"hidden":false,"merged":[[1,1,1,5]]}
[]
[null,"Find and Replace Formatting with Partial String"]
[]
[null,"Car Name","Region","Quantity","Unit Price","Sales"]
[null,"BMW","North Carolina",23,145000,{"$f":"E5*D5","v":3335000}]
[null,"Mercedes Benz","South Carolina",24,145000,{"$f":"E6*D6","v":3480000}]
[null,"BMW","New York",45,145000,6525000]
[null,"Toyota","North Alaska",23,145000,3335000]
[null,"Mercedes Benz","Los Angeles",30,145000,4350000]
[null,"BMW","North Carolina",23,145000,3335000]
[null,"Toyota","Colorado",24,145000,3480000]

{"sheet":"Changing Existing format","index":2,"n_rows":11,"n_cols":6,"rows_kept":11,"cut":false,"hidden":false,"merged":[[1,1,1,5]]}
[]
[null,"Changing Existing Format"]
[]
[null,"Car Name","Region","Quantity","Unit Price","Sales"]
[null,"BMW","North Carolina",23,145000,{"$f":"E5*D5","v":3335000}]
[null,"Mercedes Benz","South Carolina",24,145000,{"$f":"E6*D6","v":3480000}]
[null,"BMW","New York",45,145000,6525000]
[null,"Toyota","North Alaska",23,145000,3335000]
[null,"Mercedes Benz","Los Angeles",30,145000,4350000]
[null,"BMW","North Carolina",23,145000,3335000]
[null,"Toyota","Colorado",24,145000,3480000]

{"sheet":"Sheet1 (4)","index":3,"n_rows":11,"n_cols":6,"rows_kept":11,"cut":false,"hidden":false,"merged":[[1,1,1,5]]}
[]
[null,"Changing Existing Format"]
[]
[null,"Car Name","Region","Quantity","Unit Price","Sales"]
[null,"BMW","North Carolina",23,145000,{"$f":"E5*D5","v":3335000}]
[null,"Mercedes Benz","South Carolina",24,145000,{"$f":"E6*D6","v":3480000}]
[null,"BMW","New York",45,145000,6525000]
[null,"Toyota","North Alaska",23,145000,3335000]
[null,"Mercedes Benz","Los Angeles",30,145000,4350000]
[null,"BMW","North Carolina",23,145000,3335000]
[null,"Toyota","Colorado",24,145000,3480000]

{"sheet":"Replacing number","index":4,"n_rows":11,"n_cols":6,"rows_kept":11,"cut":false,"hidden":false,"merged":[[1,1,1,5]]}
[]
[null,"Find and Replace Text/Numbers/Cell Range "]
[]
[null,"Car Name","Region","Quantity","Unit Price","Sales"]
[null,"BMW","North Carolina",23,149000,{"$f":"E9*D9","v":4470000}]
[null,"Mercedes Benz","South Carolina",24,149000,{"$f":"E6*D6","v":3576000}]
[null,"BMW","New York",49,149000,7301000]
[null,"Toyota","North Alaska",23,149000,3427000]
[null,"Mercedes Benz","Los Angeles",30,149000,4470000]
[null,"BMW","North Carolina",23,149000,3427000]
[null,"Toyota","Colorado",24,149000,3576000]

{"sheet":"Sheet1 (6)","index":5,"n_rows":11,"n_cols":6,"rows_kept":11,"cut":false,"hidden":false,"merged":[[1,1,1,5]]}
[]
[null,"Find and Replace Text/Numbers/Cell Range "]
[]
[null,"Car Name","Region","Quantity","Unit Price","Sales"]
[null,"BMW","North Carolina",23,149000,{"$f":"E9*D9","v":4470000}]
[null,"Mercedes Benz","South Carolina",24,149000,{"$f":"E6*D6","v":3576000}]
[null,"BMW","New York",49,149000,7301000]
[null,"Toyota","North Alaska",23,149000,3427000]
[null,"Mercedes Benz","Los Angeles",30,149000,4470000]
[null,"BMW","North Carolina",23,149000,3427000]
[null,"Toyota","Colorado",24,149000,3576000]

{"sheet":"Reolace line breaks","index":6,"n_rows":11,"n_cols":6,"rows_kept":11,"cut":false,"hidden":false,"merged":[[1,1,1,5]]}
[]
[null,"Clearing Clipboard Using VBA"]
[]
[null,"Car Name","Region","Quantity","Unit Price","Sales"]
[null,"BMW","North Alaska",23,149000,{"$f":"E9*D9","v":4470000}]
[null,"Mercedes Benz","South Carolina",24,149000,{"$f":"E6*D6","v":3576000}]
[null,"BMW","New York",49,149000,7301000]
[null,"Toyota","North Alaska",23,149000,3427000]
[null,"Mercedes Benz","Los Angeles",30,149000,4470000]
[null,"BMW","North Alaska",23,149000,3427000]
[null,"Toyota","Colorado",24,149000,3576000]

{"sheet":"Reolace line breaks (2)","index":7,"n_rows":11,"n_cols":6,"rows_kept":11,"cut":false,"hidden":false,"merged":[[1,1,1,5]]}
[]
[null,"Clearing Clipboard Using VBA"]
[]
[null,"Car Name","Region","Quantity","Unit Price","Sales"]
[null,"BMW","North Alaska",23,149000,{"$f":"E9*D9","v":4470000}]
[null,"Mercedes Benz","South Carolina",24,149000,{"$f":"E6*D6","v":3576000}]
[null,"BMW","New York",49,149000,7301000]
[null,"Toyota","North Alaska",23,149000,3427000]
[null,"Mercedes Benz","Los Angeles",30,149000,4470000]
[null,"BMW","North Carolina",23,149000,3427000]
[null,"Toyota","Colorado",24,149000,3576000]

{"sheet":"Reolace line breaks (3)","index":8,"n_rows":11,"n_cols":6,"rows_kept":11,"cut":false,"hidden":false,"merged":[[1,1,1,5]]}
[]
[null,"Disabling Copy-Paste Without Clearing Clipboard"]
[]
[null,"Car Name","Region","Quantity","Unit Price","Sales"]
[null,"BMW","North Alaska",23,149000,{"$f":"E9*D9","v":4470000}]
[null,"Mercedes Benz","South Carolina",24,149000,{"$f":"E6*D6","v":3576000}]
[null,"BMW","New York",49,149000,7301000]
[null,"Toyota","North Alaska",23,149000,3427000]
[null,"Mercedes Benz","Los Angeles",30,149000,4470000]
[null,"BMW","North Carolina",23,149000,3427000]
[null,"Toyota","Colorado",24,149000,3576000]